Cogmind - Beta 12 @@@ ROGUE MODE // 2023.04.29 @ 16:25:29 Player: Mr Goldstein Result: Destroyed by G-47 Trooper with Particle Gun Performance ------------- Evolutions (0) 0 Regions Visited (2) 400 Robots Destroyed (41) 205 Value Destroyed (1017) 1017 Prototype IDs (2) 40 Alien Tech Used (0) 0 Bonus (64) 64 TOTAL SCORE: 1726 Bonus ------- High Alert Combat Kills 64 Cogmind --------- Core Integrity 0/250 Matter 264/300 Energy 100/100 System Corruption 1% Temperature Cool (9) Movement Rolling (175) Ox5 Location -10/Mines Parts ------- > --- POWER (1) -------- (None) > --- PROPULSION (2) --- Compact Wheel > --- UTILITY (2) ------ Huge Storage Unit > --- WEAPON (2) ------- Autogun > --- INVENTORY (25) --- Light Ion Engine Wheel Compact Wheel Improved Heat Sink High-capacity Battery (250) Medium Matter Pod (100) Light Armor Plating Light Armor Plating Light Armor Plating Light Armor Plating Light Armor Plating Medium Laser Assault Rifle Assault Rifle Assault Rifle Assault Rifle Assault Rifle Assault Rifle Autogun Autogun Grenade Launcher Grenade Launcher Peak State ------------ > --- POWER ------------ Ion Engine > --- PROPULSION ------- Compact Wheel Compact Wheel > --- UTILITY ---------- Huge Storage Unit Light Armor Plating > --- WEAPON ----------- Autogun Autogun > --- INVENTORY -------- Light Ion Engine Compact Wheel Improved Heat Sink High-capacity Battery Medium Matter Pod Backup Plating I Backup Plating I Backup Plating I Light Armor Plating Light Armor Plating Light Armor Plating Light Armor Plating Light Armor Plating Light Armor Plating Medium Laser Small Laser Assault Rifle Assault Rifle Light Assault Rifle Light Assault Rifle Light Assault Rifle Autogun Autogun Grenade Launcher [Rating: 11] Favorites ----------- Power Ion Engine Engine Ion Engine Propulsion Compact Wheel Wheel Compact Wheel Utility Huge Storage Unit Device Improved Heat Sink Storage Huge Storage Unit Protection Light Armor Plating Weapon Autogun Energy Gun Medium Laser Ballistic Gun Autogun Launcher Grenade Launcher Build | -11 -10 -10 ------- Run | Jun Mat Min Slots Evolved . | . . . Power . | . . . Propulsion . | . . . Utility . | . . . Weapon . | . . . Parts Attached 29 | 7 19 3 Power 2 | 2 . . Engine 2 | 2 . . Core . | . . . Reactor . | . . . Propulsion 3 | 2 1 . Treads . | . . . Leg . | . . . Wheel 3 | 2 1 . Hover . | . . . Flight . | . . . Utility 6 | 1 4 1 Device 1 | . 1 . Storage 3 | 1 2 . Processor . | . . . Hackware . | . . . Protection 2 | . 1 1 Artifact . | . . . Weapon 18 | 2 14 2 Energy Gun 1 | 1 . . Energy Cannon . | . . . Ballistic Gun 12 | 1 9 2 Ballistic Cannon . | . . . Launcher 5 | . 5 . Special Weapon . | . . . Impact Weapon . | . . . Slashing Weapon . | . . . Piercing Weapon . | . . . Special Melee Weapon . | . . . Unidentified Prototypes . | . . . Parts Lost 6 | . 1 5 Power 1 | . . 1 Propulsion 2 | . 1 1 Utility 2 | . . 2 Weapon 1 | . . 1 Highest Loss Streak 5 | . 1 5 To Critical Strikes . | . . . Average Slot Usage (%) 94 | . 94 89 Engine 13 | . 14 10 Wheel 23 | . 23 24 Storage 14 | . 14 14 Protection 12 | . 12 12 Ballistic Gun 26 | . 27 15 Naked Turns . | . . . Heaviest Build 94 | 13 94 94 Greatest Support 32 | 32 32 32 Greatest Overweight (x) 5 | 1 5 5 Average Overweight (x) 2 | . 2 2 Largest Inventory Capacity 25 | 8 25 25 Average Capacity 23 | 7 23 25 Most Carried 25 | 4 25 23 Average Carried 19 | 1 19 22 Final Capacity 25 | 8 25 25 Final Carried 23 | 4 23 22 Class Distribution -------------------- 100% | Mutant Dominant Class ---------------- Mutant | -10/Materials Mutant | -10/Mines Resources | -11 -10 -10 ----------- Run | Jun Mat Min Matter Collected 1264 | 206 1005 53 Remotely . | . . . Salvage Created 1245 | 52 1193 . Parts 94 | 2 92 . Haulers Intercepted 2 | . 2 . Recyclers Shooed . | . . . Parts Field Recycled . | . . . Retrieved Matter . | . . . Parts Self-Destructed . | . . . Prevented . | . . . Kills | -11 -10 -10 ------- Run | Jun Mat Min Combat Hostiles Destroyed 27 | . 27 . Guns 23 | . 23 . AOE 4 | . 4 . Classes Destroyed 9 | 1 8 . Worker 2 | . 2 . Builder 4 | . 4 . Tunneler 1 | . 1 . Hauler 2 | . 2 . Recycler 1 | 1 . . Mechanic 1 | . 1 . Watcher 3 | . 3 . Swarmer 6 | . 6 . Grunt 21 | . 21 . Best Kill Streak 4 | 1 4 . Combat Bots Only 4 | . 4 . Max Kills in Single Turn 2 | 1 2 . Gunslinging . | . . . Exploded 2 | . 2 . Melee . | . . . Uniques/NPCs Destroyed . | . . . Combat | -11 -10 -10 -------- Run | Jun Mat Min Damage Taken 1045 | . 490 555 Core 259 | . 51 208 Absorbed by Shields . | . . . Regen/Repaired (Parts) 184 | . 184 . Core Remaining (%) 100 | 100 . . Volleys Fired 113 | 4 102 7 Largest 2 | 2 2 2 Hottest 70 | 70 70 46 Shots Fired 220 | 8 198 14 Gun 214 | 8 192 14 Cannon . | . . . Launcher 6 | . 6 . Special . | . . . Kinetic 208 | 4 190 14 Thermal 6 | 4 2 . Explosive 6 | . 6 . Electromagnetic . | . . . Robot Hit Streak 12 | 7 12 5 Robot Miss Streak 5 | 1 5 2 Penetration Max . | . . . Secondary Targets 1 | . 1 . Max Gunslinging Chain 1 | . 1 . Shots Hit Robots 132 | 7 116 9 Core Hits 59 | 2 55 2 Critical Kills . | . . . Critical Parts Destroyed 1 | . 1 . Critical Strikes 1 | . 1 . Destroy 1 | . 1 . Melee Attacks . | . . . Impact . | . . . Slashing . | . . . Piercing . | . . . Sneak Attacks . | . . . Combat Hostiles . | . . . Follow-up Attacks . | . . . Damage Inflicted 2010 | 70 1811 129 Guns 1859 | 70 1660 129 Cannons . | . . . Explosions 151 | . 151 . Melee . | . . . Ramming . | . . . Kinetic 1810 | 34 1647 129 Thermal 49 | 36 13 . Explosive 151 | . 151 . Electromagnetic . | . . . Impact . | . . . Slashing . | . . . Piercing . | . . . Highest Corruption 1 | . 1 1 Average Corruption 1 | . 1 1 Corruption Purged . | . . . Corruption Blocked . | . . . Effects 2 | . 1 1 Matter Fused 1 | . . 1 Data Loss (major) 1 | . 1 . Overload Shots . | . . . Overflow Damage . | . . . Projectiles . | . . . Explosions . | . . . Melee . | . . . Knockbacks . | . . . Impact . | . . . Kinetic . | . . . Secondary . | . . . Self-Inflicted Damage 35 | . 35 . Shots 2 | . 2 . Rammed . | . . . Targets Rammed . | . . . Kicked . | . . . Crushed . | . . . Highest Temperature 80 | 80 61 12 Average Temperature 16 | 48 15 3 Received Heat Transfer 168 | . 141 27 Siege Activations . | . . . Robots Corrupted . | . . . Combat Hostiles . | . . . Parts Fried . | . . . Impact Corruptions . | . . . Robots Melted . | . . . Combat Hostiles . | . . . Parts Melted . | . . . Heat Transferred 148 | 111 37 . Parts Sabotaged . | . . . Parts Stolen . | . . . Parts Stripped . | . . . Power Chain Reactions . | . . . Missiles Intercepted . | . . . Alert | -11 -10 -10 ------- Run | Jun Mat Min Peak Influence 532 | 5 532 204 Initial 204 | . 3 204 Average 239 | . 250 194 Maximum Alert Level 2 | . 2 1 Low Security (%) 45 | 100 45 27 Level 1 34 | . 32 72 Level 2 19 | . 21 . Level 3 . | . . . Level 4 . | . . . Level 5 . | . . . High Security . | . . . Max Security . | . . . Squads Dispatched 9 | . 9 . Investigation 7 | . 7 . Extermination . | . . . Reinforcement 2 | . 2 . Assault . | . . . Garrison . | . . . Intercept . | . . . Searches Triggered . | . . . Construction Impeded . | . . . Haulers Reinforced . | . . . Active Scanning Responses . | . . . Cargo Convoy Interrupts . | . . . Stealth | -11 -10 -10 --------- Run | Jun Mat Min Distress Signals 1 | . 1 . Communications Jammed . | . . . Distress Signals . | . . . Times Spotted 48 | . 45 3 Peak Tracking Total 6 | . 6 2 Tactical Retreats 2 | . 2 . Traps | -11 -10 -10 ------- Run | Jun Mat Min Traps Triggered . | . . . Indirectly . | . . . Trap Hack Attempts . | . . . Triggered . | . . . Disarmed . | . . . Reprogrammed . | . . . Reused . | . . . Traps Extracted . | . . . Installed . | . . . Triggered . | . . . Machines | -11 -10 -10 ---------- Run | Jun Mat Min Machines Disabled 1 | . 1 . Max in Single Turn 1 | . 1 . Machines Repaired 2 | . 2 . Machines Sabotaged . | . . . Overloaded Fab Kills . | . . . Hacking | -11 -10 -10 --------- Run | Jun Mat Min Machines Accessed 9 | . 9 . Terminals 6 | . 6 . Fabricators . | . . . Repair Stations 1 | . 1 . Recycling Units 2 | . 2 . Scanalyzers . | . . . Garrison Access . | . . . Total Hacks 32 | . 32 . Successful 16 | . 16 . Failed 16 | . 16 . Catastrophic 3 | . 3 . Database Lockouts . | . . . Manual 27 | . 27 . Terminals 24 | . 24 . Fabricators . | . . . Repair Stations 5 | . 5 . Recycling Units 3 | . 3 . Scanalyzers . | . . . Garrison Access . | . . . Terminal Hacks 4 | . 4 . Robot Analysis 2 | . 2 . Prototype ID Bank 1 | . 1 . Hauler Manifests 1 | . 1 . Fabricator Hacks . | . . . Repair Station Hacks 4 | . 4 . Scan Component 2 | . 2 . Repair 2 | . 2 . Recycling Unit Hacks . | . . . Scanalyzer . | . . . Garrison Access Hacks . | . . . Unauthorized Hacks 8 | . 8 . Terminals 6 | . 6 . Botnet 4 | . 4 . Sabotage 2 | . 2 . Fabricators . | . . . Repair Stations . | . . . Recycling Units 2 | . 2 . Tunnel 2 | . 2 . Scanalyzers . | . . . Garrison Access . | . . . Data Cores Recovered . | . . . Used . | . . . Hacking Detections 7 | . 7 . Full Trace Events 5 | . 5 . Feedback Events 1 | . 1 . Corruption 1 | . 1 . Feedback Blocked . | . . . Robot Schematics Acquired . | . . . Robots Built . | . . . Authchips . | . . . Time . | . . . Total Robot Build Rating . | . . . Part Schematics Acquired . | . . . Parts Built . | . . . Authchips . | . . . Time . | . . . Total Part Build Rating . | . . . Parts Repaired 2 | . 2 . Time 64 | . 64 . Parts Recycled . | . . . Recycled Matter . | . . . Retrieved Matter . | . . . Retrieved Components . | . . . Parts Scanalyzed . | . . . Part Schematics Acquired . | . . . Parts Damaged . | . . . Bothacking | -11 -10 -10 ------------ Run | Jun Mat Min Used RIF Installer . | . . . Robots Hacked . | . . . Non-combat . | . . . Combat . | . . . Robot Hacks Applied . | . . . Relay Couplers Released . | . . . Fabnet Peak Effective % . | . . . Robots Rewired . | . . . Allies Hacked . | . . . Hacks Repelled . | . . . Allies | -11 -10 -10 -------- Run | Jun Mat Min Total Allies . | . . . Largest Group . | . . . Highest-Rated Group . | . . . Highest-Rated Ally . | . . . Total Orders . | . . . Ally Attacks . | . . . Total Damage . | . . . Kills . | . . . Allies Corrupted . | . . . Allies Melted . | . . . Intel | -11 -10 -10 ------- Run | Jun Mat Min Robot Analysis Total 2 | . 2 . Derelict Logs Recovered . | . . . Drone Launches . | . . . Drone Recoveries . | . . . Exploration | -11 -10 -10 ------------- Run | Jun Mat Min Turns Passed 2397 | 65 2166 166 Spaces Moved 1232 | 43 1108 81 Core 10 | 10 . . Treads . | . . . Legs . | . . . Wheels 1222 | 33 1108 81 Hover . | . . . Flight . | . . . Fastest Speed 50 | 50 100 130 Average Speed 132 | 94 134 136 Slowest Speed 175 | 100 175 175 Overloaded Moves . | . . . Propulsion Burnouts . | . . . Robots Hopped . | . . . Cave-ins Triggered . | . . . Exploration Rate (%) 39 | 3 99 17 Regions Visited 2 Branch Regions 1 Pre-discovered Areas 2 | . 2 . Known Exits Taken . | . . . Unknown Exits Taken 2 | 1 1 . Scrap Searched . | . . . Spaces Dug 19 | . 19 . Terrain Destroyed 43 | . 43 . Melee . | . . . Projectile . | . . . AOE 43 | . 43 . Terrain Rammed . | . . . Walls Destroyed . | . . . Machines Disabled . | . . . Actions | -11 -10 -10 --------- Run | Jun Mat Min Total 1807 | 56 1627 124 Wait 389 | . 356 33 Move 1230 | 42 1107 81 Hop . | . . . Pick Up 34 | 3 31 . Fast Attach 8 | 6 2 . Attach 3 | . 2 1 Detach . | . . . Swap 18 | 1 15 2 Drop 12 | . 12 . Fire 113 | 4 102 7 Melee . | . . . Ram . | . . . Kick . | . . . Crush . | . . . Escape Stasis . | . . . Rewire . | . . . Trap . | . . . Miscellaneous . | . . . Route ------- -11/Junkyard -10/Materials (discovered 4 exits: [*Mat x3] / [*Min]) -10/Mines (discovered 1 exit: [*Exi]) History --------- Turn | Location | Event 23 | -11/Junkyard | Discovered new exit (range 15) 66 | -11/Junkyard | Entered Materials 238 | -10/Materials | Discovered new exit (range 6) 315 | -10/Materials | Build established: Mutant 826 | -10/Materials | Discovered new exit (range 16) 1040 | -10/Materials | Discovered new exit (range 16) 1918 | -10/Materials | Discovered new exit (range 14) 2088 | -10/Materials | Repaired Autogun 2121 | -10/Materials | Repaired Autogun 2232 | -10/Materials | Entered Mines 2269 | -10/Mines | Deemed a non-threat by the Exiles lab entrance 2269 | -10/Mines | Discovered new exit (range 5) 2352 | -10/Mines | Core integrity fell below 50% 2366 | -10/Mines | Core integrity fell below 20% 2398 | -10/Mines | Destroyed by G-47 Trooper with Particle Gun Last Messages --------------- 02377_ YI-UF0 destroyed. 02377_ Acquired 53 matter. 02379_ The unstable cave ceiling collapses. 02379_ U-05 Engineer lays Concrete. 02380_ U-05 Engineer builds a Wall. 02383_ The unstable cave ceiling collapses. 02383_ U-05 Engineer lays Concrete. 02383_ R-06 Scavenger collects Ion Engine. 02384_ The unstable cave ceiling collapses. 02384_ U-05 Engineer lays Concrete. 02386_ U-05 Engineer builds a Wall. 02387_ U-05 Engineer lays Concrete. 02388_ U-05 Engineer builds a Wall. 02390_ U-05 Engineer lays Concrete. 02392_ The unstable cave ceiling collapses. 02392_ U-05 Engineer lays Concrete. 02395_ U-05 Engineer builds a Wall. 02395_ U-05 Engineer lays Concrete. 02396_ The unstable cave ceiling collapses. 02396_ K-01 Serf collects debris. Map ----- +----------------------------------------------------+ | | | | | | | | | | | | | | | | | | | | | | | | | | | ????????????????????????????????????????????? | | ?????????????????????????####???????????????? | | ??????????????????####??## ##??????????????? | | ?????????????????## #### ##????####?????? | | ?????????????????# ##???#